bitfinex/quotes_ETHUSD_20250411
["timestamp","ask_amount","ask_price","bid_price","bid_amount"]
[1744361489203,6.46245,1547.4,1547.3,0.16819956]
[1744361489399,6.46219,1547.5,1547.1,13.71434]
[1744361489602,6.46219,1547.5,1547.2,0.16964205]
[1744361489978,6.46219,1547.5,1547.1,13.71434]
[1744361490178,6.46219,1547.5,1547.2,1.54107605]
[1744361490401,6.46219,1547.5,1547.2,0.16964205]
[1744361490588,6.46219,1547.5,1547.1,13.71434]
[1744361490906,6.46219,1547.5,1547.2,0.17280615]
[1744361491287,6.46219,1547.5,1547.1,6.46353]
[1744361491613,6.46219,1547.5,1547.2,0.17077223]
[1744361491911,7.108409,1547.5,1547.2,0.17077223]
[1744361492112,7.108409,1547.5,1547.1,6.46353]
[1744361492319,7.108409,1547.5,1547.3,0.17017687]
[1744361492474,7.108409,1547.5,1547.2,0.17077223]
[1744361492674,6.46219,1547.5,1547.4,0.16958159]
[1744361492875,12.92459,1547.5,1547.3,0.16961184]
[1744361493104,12.92459,1547.5,1547.4,0.16901659]
[1744361493311,16.73609,1547.5,1547.4,0.16901659]
[1744361493629,16.73609,1547.5,1546.9,7.23287]
[1744361493630,12.92524,1547.4,1547.0,6.46407]
[1744361493815,6.46297,1547.3,1547.0,6.46407]
[1744361494115,12.92609,1547.3,1547.1,0.17328072]
[1744361494514,6.46297,1547.3,1546.9,7.23276]
[1744361494817,12.55186,1547.6,1547.2,6.46293]
[1744361495048,7.17645934,1547.6,1547.1,12.92718]
[1744361495345,6.46218,1547.5,1547.3,0.17050779]
[1744361495549,6.46218,1547.5,1547.2,6.63493808]
[1744361495845,6.46218,1547.5,1547.3,0.17141176]
[1744361496245,12.9245,1547.5,1547.3,0.17141176]
[1744361496430,14.93451593,1547.5,1547.3,0.17141176]
[1744361496635,8.47227593,1547.5,1547.2,6.46327]
[1744361496834,6.46218,1547.5,1547.4,0.1707035]
[1744361497038,6.46218,1547.5,1547.3,0.17141176]
[1744361497327,6.46218,1547.5,1547.4,0.1697996]
[1744361497747,7.54815934,1547.6,1547.2,12.92642]
[1744361498043,6.46205,1547.5,1547.3,0.17095975]
[1744361498824,7.754425,1547.5,1547.3,0.17095975]
[1744361499140,6.46245,1547.4,1547.3,0.17095975]
[1744361499309,12.92519,1547.4,1547.0,13.71733]
[1744361499512,12.92519,1547.4,1547.3,0.17084676]
[1744361499746,12.92519,1547.4,1547.0,13.71722]
[1744361500045,12.92519,1547.4,1547.0,15.088942]
[1744361500245,12.92519,1547.4,1547.1,0.17215046]
[1744361500643,6.46212,1547.5,1547.2,6.46327]
[1744361501015,12.55169,1547.6,1547.3,0.17095975]
[1744361501623,6.46216,1547.5,1547.3,0.17095975]
[1744361501827,7.930866,1547.4,1547.3,0.17095975]
[1744361502025,7.28465,1547.4,1547.1,6.46363]
[1744361502230,7.28465,1547.4,1547.3,0.17062079]
[1744361502424,7.28465,1547.4,1547.2,0.17121609]
[1744361502612,6.46245,1547.4,1547.2,0.17121609]
[1744361502810,6.46245,1547.4,1547.1,6.46363]
[1744361503014,6.46245,1547.4,1547.2,0.17121609]
[1744361503215,6.46245,1547.4,1547.1,7.835323]
[1744361503440,6.46245,1547.4,1547.2,0.17121609]
[1744361503934,6.46245,1547.4,1547.1,7.835323]
[1744361504137,6.46245,1547.4,1547.3,0.17048163]
[1744361504344,6.46287,1547.3,1547.2,0.17124641]
[1744361504554,6.46287,1547.3,1547.0,7.25328]
[1744361504727,6.46287,1547.3,1547.0,8.625055]
[1744361505135,0.816,1547.3,1546.8,15.20749]
[1744361505326,6.46328,1547.2,1546.8,21.67227]
[1744361505527,9.46255,1547.4,1547.0,6.46386]
[1744361506061,9.46255,1547.4,1547.1,7.4537113]
[1744361506559,15.92527,1547.4,1547.1,0.9900113]
[1744361506762,9.46255,1547.4,1547.1,0.9900113]
[1744361507063,15.92524,1547.4,1547.1,0.9900113]
[1744361507260,6.46288,1547.3,1547.1,0.9900113]
[1744361507561,13.74043,1547.5,1547.1,7.4534713]
[1744361507763,13.74043,1547.5,1547.1,13.9170513]
[1744361507931,6.46245,1547.4,1547.1,0.9900113]
[1744361508133,6.46302,1547.3,1547.1,0.1720113]
[1744361508333,7.27809,1547.5,1547.1,13.0992813]
[1744361508533,6.46261,1547.4,1547.1,7.29918643]
[1744361508786,12.92532,1547.4,1547.1,7.29918643]
[1744361509131,12.92532,1547.4,1547.1,0.83561643]
[1744361509451,6.46261,1547.4,1547.1,0.90024709]
[1744361509650,3.0,1547.6,1547.2,0.7701]
[1744361509959,7.21484,1547.7,1547.3,6.46273]
[1744361510268,7.21484,1547.7,1547.3,0.1665276]
[1744361510269,0.7535,1547.7,1547.3,0.1665276]
[1744361510570,12.92446,1547.5,1547.3,0.1665276]
[1744361511068,6.46245,1547.4,1547.3,0.1665276]
[1744361511738,6.4622,1547.5,1547.3,0.1665276]
[1744361512260,6.46245,1547.4,1547.3,0.1665276]
[1744361513849,6.4622,1547.5,1547.3,0.1665276]
[1744361514055,6.46177,1547.6,1547.3,0.1665276]
[1744361514226,6.46217,1547.5,1547.3,0.90650436]
[1744361514431,6.4623,1547.5,1547.3,0.90650436]
[1744361514632,12.92474,1547.5,1547.3,0.1665276]
[1744361515166,6.46245,1547.4,1547.3,0.1665276]
[1744361518468,6.46223,1547.5,1547.3,0.1665276]
[1744361518651,6.46167,1547.6,1547.3,0.1665276]
[1744361519037,6.46167,1547.6,1547.3,6.6292476]
[1744361519372,6.46167,1547.6,1547.4,0.66292476]
[1744361519667,6.46167,1547.6,1547.5,0.16495509]
[1744361520652,12.92275,1547.7,1547.5,0.16495509]
[1744361520883,6.46161,1547.6,1547.5,0.16495509]
[1744361521992,6.46161,1547.6,1547.2,0.7701]
[1744361521993,6.4621,1547.5,1547.2,0.7701]
[1744361522353,6.4621,1547.5,1547.2,2.35673951]
[1744361522578,6.4621,1547.5,1547.2,0.7701]
[1744361522949,6.4621,1547.5,1547.2,8.7391]
[1744361523151,7.26422,1547.8,1547.3,6.46278]
[1744361523392,6.46137,1547.7,1547.3,6.46278]
[1744361523587,6.46137,1547.7,1547.4,0.646278]
[1744361523750,12.92275,1547.7,1547.3,6.46278]
[1744361523947,6.46137,1547.7,1547.3,12.99013874]
[1744361524190,12.92175,1547.8,1547.4,7.26693]
[1744361525004,6.46083,1547.8,1547.4,13.72936]
[1744361525207,12.92179,1547.8,1547.4,13.72936]
[1744361525382,6.46123,1547.7,1547.4,8.639866]
[1744361525903,6.46123,1547.7,1547.4,2.177436]
[1744361525904,6.46166,1547.6,1547.4,2.177436]
[1744361526495,6.46166,1547.6,1547.4,10.146436]
[1744361526692,6.46123,1547.7,1547.4,10.146436]
[1744361526908,6.46123,1547.7,1547.4,16.608856]
[1744361527108,6.46123,1547.7,1547.4,23.071136]
[1744361527278,6.46123,1547.7,1547.4,16.608716]
[1744361528176,6.46123,1547.7,1547.4,23.071006]
[1744361528376,6.46015,1548.0,1547.7,0.7527]
[1744361528675,6.4596,1548.1,1547.7,13.67504]
[1744361528676,12.91927,1548.1,1547.7,13.67504]
[1744361528872,6.4596,1548.1,1547.7,7.21387]
[1744361529120,6.4596,1548.1,1547.8,6.46075]
[1744361529411,6.4596,1548.1,1547.8,14.42975]
[1744361529614,6.4596,1548.1,1547.8,7.969]
[1744361529773,6.46015,1548.0,1547.8,7.969]
[1744361529978,6.46049,1547.9,1547.7,0.7527]
[1744361530291,12.92013,1548.0,1547.7,0.7527]
[1744361531425,12.9202,1548.0,1547.7,0.7527]
[1744361531589,6.46004,1548.0,1547.7,0.7527]
[1744361531974,7.2625,1548.1,1547.7,8.77825958]
[1744361532179,6.45921,1548.2,1547.8,6.52512463]
[1744361532379,6.45921,1548.2,1547.9,6.46013]
[1744361532611,12.05868909,1548.3,1547.9,12.92035]
[1744361532807,5.59996909,1548.3,1548.0,6.45973]
[1744361533114,4.80386909,1548.3,1548.0,21.67611]
[1744361533683,4.80386909,1548.3,1548.0,15.87993513]
[1744361534009,13.01687,1548.4,1548.0,15.87993513]
[1744361534314,12.91774,1548.3,1548.0,9.42020513]
[1744361535316,6.45873,1548.3,1548.0,9.42020513]
[1744361535516,6.45873,1548.3,1548.0,15.88013513]
[1744361535820,6.45873,1548.3,1548.1,0.16198979]
[1744361536397,6.45911,1548.2,1548.1,0.16198979]
[1744361536597,6.4601,1548.0,1547.8,7.954]
[1744361536823,6.45953,1548.1,1547.9,0.14921879]
[1744361537027,6.46044,1547.9,1547.6,8.7196]
[1744361537229,6.46044,1547.9,1547.7,0.15052114]
[1744361537381,6.46044,1547.9,1547.6,15.18105]
[1744361537720,6.45964,1548.1,1547.8,6.46061]
[1744361538115,0.7694,1548.2,1548.0,6.45964]
[1744361538334,0.1,1548.4,1548.1,6.52379435]
[1744361538510,0.1,1548.4,1548.2,6.45908]
[1744361538837,0.1,1548.4,1548.3,0.14616358]
[1744361539619,0.1,1548.4,1548.3,8.66647294]
[1744361542406,0.1,1548.4,1548.3,0.14616358]
[1744361542609,0.1,1548.4,1548.2,6.45896]
[1744361542912,0.1,1548.4,1548.3,6.59902927]
[1744361546543,0.1,1548.4,1548.3,0.14033927]
[1744361547137,6.55827,1548.4,1548.3,0.14033927]
[1744361547340,6.45886,1548.3,1548.1,7.951]
[1744361547635,6.45886,1548.3,1548.0,6.45991]
[1744361547636,6.45886,1548.3,1548.0,14.41091]
[1744361547840,13.01676,1548.4,1548.0,20.87069]
[1744361548150,6.45901,1548.3,1547.9,7.28046]
[1744361548340,6.45901,1548.3,1547.9,7.28031]
[1744361548528,6.45901,1548.3,1547.9,9.17399886]
[1744361548730,6.45901,1548.3,1548.0,6.45979]
[1744361550073,6.55835,1548.4,1548.0,12.9196]
[1744361550232,13.01684,1548.4,1548.0,6.52438174]
[1744361550431,6.55835,1548.4,1548.0,12.98420174]
[1744361550633,6.55835,1548.4,1548.0,14.5540008]
[1744361550982,0.1,1548.4,1548.2,7.23184]
[1744361551281,0.1,1548.4,1548.3,0.12991184]
[1744361551729,0.1,1548.4,1548.3,6.58860184]
[1744361552136,0.1,1548.4,1548.3,7.42077215]
[1744361552471,0.1,1548.4,1548.3,8.05205017]
[1744361552669,0.1,1548.4,1548.3,16.00305017]
[1744361557688,0.1,1548.4,1548.3,8.05205017]
[1744361557880,0.1,1548.4,1548.3,16.00305017]
[1744361558497,0.1,1548.4,1548.3,16.00205017]
[1744361558793,0.1,1548.4,1548.3,20.25762873]
[1744361559797,0.1,1548.4,1548.3,23.25762873]
[1744361560299,0.1,1548.4,1548.3,16.00205017]
[1744361561061,0.1,1548.4,1548.3,8.05205017]
[1744361561262,0.1,1548.4,1548.3,16.06662558]
[1744361561575,0.1,1548.4,1548.3,16.00205017]
[1744361562498,0.1,1548.4,1548.3,8.05205017]
[1744361562708,0.1,1548.4,1548.3,0.12991184]
[1744361563064,0.1,1548.4,1548.1,21.62025]
[1744361563295,0.1,1548.4,1548.2,0.13325963]
[1744361563661,6.45886,1548.3,1548.1,7.95]
[1744361563862,13.72812,1548.3,1548.2,0.12942102]
[1744361564096,7.26916,1548.3,1548.1,7.95]
[1744361564402,7.26916,1548.3,1548.2,0.12942102]
[1744361564696,7.26916,1548.3,1548.1,7.95]
[1744361564994,0.8103,1548.3,1548.2,0.12942102]
[1744361565213,0.1,1548.4,1548.2,6.45895]
[1744361565417,0.1,1548.4,1548.3,0.12882687]
[1744361565593,6.5584,1548.4,1548.1,18.42386245]
[1744361565793,6.5584,1548.4,1548.2,0.12942102]
[1744361566119,6.5584,1548.4,1548.1,14.4094]
[1744361566337,6.5584,1548.4,1548.3,0.12882687]
[1744361566628,6.5584,1548.4,1548.2,0.12942102]
[1744361566809,6.5584,1548.4,1548.3,0.12882687]
[1744361567009,6.5584,1548.4,1548.1,14.4094]
[1744361567184,6.5584,1548.4,1548.2,0.12942102]
[1744361567385,6.5584,1548.4,1548.1,14.4094]
[1744361567625,6.5584,1548.4,1548.2,0.13015061]
[1744361567787,6.5584,1548.4,1548.1,14.4094]
[1744361568121,13.01693,1548.4,1548.2,0.13015061]
[1744361568324,13.68748071,1548.4,1548.2,0.13015061]
[1744361568633,13.68748071,1548.4,1548.3,0.12955645]
[1744361568810,13.68748071,1548.4,1548.1,7.95]
[1744361569026,13.68748071,1548.4,1548.2,0.13015061]
[1744361569336,13.68748071,1548.4,1548.1,7.95]
[1744361569337,7.22895071,1548.4,1548.1,14.40952]
[1744361569537,7.22895071,1548.4,1548.3,0.12955645]
[1744361569731,7.22895071,1548.4,1548.2,0.13015061]
[1744361569935,7.22895071,1548.4,1548.3,0.12955645]
[1744361569936,6.5584,1548.4,1548.3,0.12955645]
[1744361570313,6.5584,1548.4,1548.1,14.40952]
[1744361570500,6.5584,1548.4,1548.3,0.12955645]
[1744361570700,6.5584,1548.4,1548.2,0.13082793]
[1744361570901,6.5584,1548.4,1548.3,0.13023374]
[1744361571298,6.5584,1548.4,1548.1,14.40952]
[1744361571527,10.936383,1548.4,1548.3,0.13034663]
[1744361571737,10.29029,1548.3,1548.2,0.13082795]
[1744361571898,12.91988,1548.1,1547.7,6.46098]
[1744361572111,6.46065,1547.9,1547.5,12.45347856]
[1744361572331,6.46065,1547.9,1547.8,0.13185051]
[1744361572498,7.2917,1548.0,1547.6,12.9229]
[1744361572701,13.75187,1548.0,1547.8,0.13382618]
[1744361572898,13.75187,1548.0,1547.7,0.1344208]
[1744361573138,7.2917,1548.0,1547.9,0.13323163]
[1744361573337,8.666828,1548.0,1547.8,0.13382618]
[1744361573541,8.666828,1548.0,1547.9,0.13323163]
[1744361573940,15.127108,1548.0,1547.6,6.46143]
[1744361574146,8.666828,1548.0,1547.9,0.13323163]
[1744361574342,15.127108,1548.0,1547.6,12.92288]
[1744361574548,15.127108,1548.0,1547.5,13.87339607]
[1744361574549,6.46098,1547.8,1547.5,9.35491751]
[1744361574851,7.29259,1547.7,1547.5,7.935]
[1744361575008,0.8312,1547.7,1547.5,7.935]
[1744361577033,7.29274,1547.7,1547.5,7.935]
[1744361577230,7.29274,1547.7,1547.4,1.259337]
[1744361577231,6.46161,1547.6,1547.4,1.259337]
[1744361577576,9.46027,1548.0,1547.1,7.24818]
[1744361577577,12.92457,1547.5,1547.1,7.24818]
[1744361577875,7.21325,1547.4,1547.2,7.936]
[1744361578774,7.21325,1547.4,1547.0,6.46406]
[1744361578974,9.46124,1547.7,1546.8,20.86586]
[1744361578975,6.46349,1547.2,1546.8,20.86586]
[1744361579140,7.22297,1547.1,1546.8,14.40093]
[1744361579341,0.7592,1547.1,1546.9,6.46453]
[1744361579670,0.7592,1547.1,1546.9,12.92906]
[1744361579857,13.75194,1547.3,1546.9,7.21713]
[1744361580272,6.46329,1547.2,1546.9,6.46453]
[1744361580637,13.75204,1547.3,1546.9,6.46434]
[1744361580968,13.75204,1547.3,1547.0,0.13083358]
[1744361581169,6.46663,1546.4,1546.3,8.97661744]
[1744361581373,7.925793,1546.4,1546.3,8.97661744]
[1744361581679,7.27913,1546.4,1546.3,8.97661744]
[1744361582941,7.24263,1546.6,1546.3,8.97661744]
[1744361583349,9.46556,1546.7,1546.4,6.46663]
[1744361583350,6.46556,1546.7,1546.4,6.46663]
[1744361583542,6.46556,1546.7,1546.3,21.68083]
[1744361583731,7.27342,1546.8,1546.4,6.46644]
[1744361583936,0.8084,1546.8,1546.5,12.93236]
[1744361584167,9.46459,1546.9,1546.5,6.46618]
[1744361584338,9.46459,1546.9,1546.4,6.46658]
[1744361584339,6.46459,1546.9,1546.4,6.46658]
[1744361584537,6.46496,1546.8,1546.4,6.46658]
[1744361584738,6.46496,1546.8,1546.5,6.46615]
[1744361584946,6.46459,1546.9,1546.5,6.46615]
[1744361585277,6.46375,1547.1,1546.7,7.26844]
[1744361585480,6.46375,1547.1,1546.8,6.46485]
[1744361585665,8.631904,1547.2,1546.8,12.92962]
[1744361586172,8.631904,1547.2,1546.8,12.9295]
[1744361586367,8.631904,1547.2,1546.8,6.46473]
[1744361586571,0.8631904,1547.1,1546.5,7.25978]
[1744361586740,7.26013,1546.9,1546.5,13.72581]
[1744361588182,7.26013,1546.9,1546.5,7.25973]
[1744361588380,7.26013,1546.9,1546.5,13.72577]
[1744361588677,8.632555,1546.9,1546.5,13.72577]
[1744361589347,2.167825,1546.9,1546.6,6.46578]
[1744361589555,0.7954,1546.9,1546.6,6.46562]
[1744361590047,0.7954,1546.9,1546.6,12.93121]
[1744361590381,0.7954,1546.9,1546.6,6.46559]
[1744361590986,7.26001,1546.9,1546.6,6.46559]
[1744361591292,7.986011,1546.9,1546.5,6.46613]
[1744361591470,6.46501,1546.8,1546.5,6.46613]
[1744361591671,7.986011,1546.9,1546.5,6.46613]
[1744361591891,7.986011,1546.9,1546.6,6.46579]
[1744361593387,7.986011,1546.9,1546.5,12.93208]
[1744361593589,14.450831,1546.9,1546.5,12.93208]
[1744361593887,7.986011,1546.9,1546.5,12.93208]
[1744361594093,6.8456,1547.2,1546.7,4.46507856]
[1744361594250,13.68013,1547.5,1547.1,6.46345]
[1744361595075,7.21779,1547.5,1547.1,12.92702]
[1744361595278,0.721779,1547.4,1547.2,6.46325]
[1744361595646,0.721779,1547.4,1547.2,12.92635]
[1744361595848,10.16685856,1547.7,1547.1,0.0646305]
[1744361595849,0.8234,1547.7,1547.1,0.0646305]
[1744361596158,0.8234,1547.7,1547.4,6.46231]
[1744361596356,10.16597856,1547.9,1547.7,6.46114]
[1744361596357,0.8193,1547.9,1547.7,6.46114]
[1744361596589,6.45999,1548.0,1547.7,6.46114]
[1744361596891,0.8193,1548.1,1547.6,0.8202]
[1744361597093,8.006727,1548.1,1547.7,6.46117]
[1744361597280,3.7533,1548.0,1547.4,14.38818]
[1744361597589,6.46108,1547.8,1547.4,14.38818]
[1744361597776,12.92216,1547.8,1547.4,14.38818]
[1744361600087,6.46036,1547.9,1547.4,7.926]
[1744361600252,6.46186,1547.6,1547.4,7.926]
[1744361600653,6.46186,1547.6,1547.3,7.28303]
[1744361600852,6.46186,1547.6,1547.3,15.20703]
[1744361601085,12.92373,1547.6,1547.3,8.7442]
[1744361601288,6.46235,1547.5,1547.3,7.924]
[1744361601493,14.372695,1547.4,1547.0,14.38806]
[1744361601695,7.909885,1547.4,1547.0,12.928]
[1744361601857,7.909885,1547.4,1547.0,20.852]
[1744361603801,14.372585,1547.4,1547.0,14.38794]
[1744361605285,6.46293,1547.3,1547.0,14.38794]
[1744361605778,12.926,1547.3,1547.0,7.924]
[1744361606185,6.46247,1547.4,1547.1,6.46354]
[1744361606494,12.92525,1547.4,1547.0,14.38797]
[1744361606699,6.46304,1547.3,1547.0,7.924]
[1744361607056,7.28744,1547.3,1547.0,7.924]
[1744361607724,13.75051,1547.3,1547.0,7.924]
[1744361607904,15.125561,1547.3,1547.0,7.924]
[1744361608504,6.46344,1547.2,1547.0,7.924]
[1744361608794,2.199451,1547.3,1547.0,8.7444]
[1744361608795,7.837931,1547.3,1547.0,8.7444]
[1744361609001,6.46416,1547.0,1546.7,6.46532]
[1744361609202,6.46416,1547.0,1546.7,7.924]
[1744361609564,0.7641,1546.9,1546.7,7.924]
[1744361610598,0.7641,1546.9,1546.6,6.46574]
[1744361610803,7.22882,1546.9,1546.6,6.46574]
[1744361611296,8.598118,1546.9,1546.6,6.46574]
[1744361611479,0.7641,1546.9,1546.6,6.530261]
[1744361611796,7.28147,1547.1,1546.8,6.46495]
[1744361611997,0.7853,1547.3,1547.0,6.46387]
[1744361612165,0.7853,1547.3,1547.1,6.46367]
[1744361612360,0.7853,1547.3,1547.1,12.92723]
[1744361612560,0.7853,1547.5,1547.3,6.46253]
[1744361613402,0.7853,1547.5,1547.3,12.92526]
[1744361613571,6.46126,1547.7,1547.3,12.92526]
[1744361613572,14.391046,1547.8,1547.4,6.46215]
[1744361614001,7.930006,1547.8,1547.4,12.92444]
[1744361614319,1.469136,1547.8,1547.5,6.4618]
[1744361615288,1.469136,1547.8,1547.5,12.92367]
[1744361615926,1.469136,1547.8,1547.6,6.46159]
[1744361616130,0.7777,1548.0,1547.3,8.7216]
[1744361616284,0.7777,1548.0,1547.8,6.46073]
[1744361616627,5.58156909,1548.2,1547.6,7.22886]
[1744361616829,0.1,1548.4,1548.1,6.45953]
[1744361617124,0.8777,1548.4,1548.1,12.91887]
[1744361617299,0.8777,1548.4,1548.1,6.45933]
[1744361617929,0.8777,1548.4,1548.2,12.91802]
[1744361618619,0.8777,1548.4,1548.1,6.4595]
[1744361619314,0.8777,1548.4,1548.2,6.45901]
[1744361619522,0.8777,1548.4,1548.0,6.45993]
[1744361619523,7.33624,1548.4,1548.0,6.45993]
[1744361619823,6.45873,1548.3,1548.0,6.45993]
[1744361620120,6.45873,1548.3,1547.8,6.46061]
[1744361620121,6.45924,1548.2,1547.8,6.46061]
[1744361620326,0.797,1548.1,1547.8,6.46061]
[1744361620532,6.4601,1548.0,1547.7,7.924]
[1744361621228,0.797,1548.1,1547.5,6.46198]
[1744361621524,6.46054,1547.9,1547.5,12.9238]
[1744361621721,7.752596,1547.9,1547.6,6.46151]
[1744361621922,1.292056,1547.9,1547.6,6.46144]
[1744361622125,13.71636,1548.1,1547.7,6.46098]
[1744361622427,6.46005,1548.0,1547.7,6.46098]
[1744361622788,6.46005,1548.0,1547.6,12.9229]
[1744361622988,13.71649,1548.1,1547.7,6.46118]
[1744361623426,6.4601,1548.0,1547.7,6.46118]
[1744361623730,13.56696,1547.9,1547.5,12.92404]
[1744361623891,7.2662,1547.8,1547.4,14.38529]
[1744361624089,6.46125,1547.7,1547.4,14.38529]
[1744361624332,0.8052,1547.8,1547.4,7.923]
[1744361624628,6.46175,1547.6,1547.2,13.7179]
[1744361624831,6.46175,1547.6,1546.9,6.46444]
[1744361624832,0.8052,1547.4,1546.9,0.7915]
[1744361625035,6.46359,1547.2,1546.8,6.46481]
[1744361625527,1.30075352,1547.2,1546.6,6.46562]
[1744361625710,6.4639,1547.1,1546.7,7.111752]
[1744361625883,8.00760535,1547.2,1546.8,6.46494]
[1744361626087,8.00760535,1547.2,1546.9,6.46431]
[1744361626088,0.8052,1547.2,1546.9,6.46431]
[1744361626494,0.8052,1547.2,1546.8,6.46495]
[1744361626689,6.09,1547.3,1547.0,6.4641]
[1744361627001,6.09,1547.3,1547.1,6.4637]
[1744361627524,6.09,1547.3,1547.0,6.4641]
[1744361627525,6.09,1547.3,1547.0,12.92808]
[1744361627710,6.09,1547.3,1547.2,6.46328]
[1744361627913,6.46302,1547.3,1546.9,12.92867]
[1744361628241,7.22233,1547.4,1547.1,6.46368]
[1744361628588,13.68502,1547.4,1547.0,6.46411]
[1744361629227,7.22229,1547.4,1547.0,6.46398]
[1744361629434,0.7596,1547.4,1547.1,6.46354]
[1744361629731,6.46207,1547.5,1547.2,6.46326]
[1744361630705,10.24518,1547.6,1547.2,12.9264]
[1744361630907,10.24518,1547.6,1547.2,6.46314]
[1744361631627,6.46264,1547.4,1547.0,13.68079]
[1744361631804,6.46264,1547.4,1547.0,15.048869]
[1744361632205,12.92534,1547.4,1547.0,15.048869]
[1744361632629,12.92534,1547.4,1547.0,8.584819]
[1744361632830,12.92534,1547.4,1547.0,7.21674]
[1744361633236,6.46264,1547.4,1547.0,7.21672]
[1744361634430,6.46264,1547.4,1547.1,6.46362]
[1744361634627,6.46209,1547.5,1547.1,6.46353]
[1744361635132,6.46209,1547.5,1547.1,12.92706]
[1744361635329,12.92439,1547.5,1547.1,7.831516]
[1744361635509,6.46261,1547.4,1547.1,7.831516]
[1744361635710,6.46209,1547.5,1547.1,14.295036]
[1744361635910,12.92433,1547.5,1547.1,14.295066]
[1744361636234,6.46299,1547.3,1547.0,7.21691]
[1744361636422,6.46247,1547.4,1547.0,7.21675]
[1744361636630,6.46247,1547.4,1547.1,6.46358]
[1744361639747,12.92515,1547.4,1547.1,6.46358]
[1744361640046,6.46247,1547.4,1547.1,6.46358]
[1744361640224,12.9251,1547.4,1547.1,6.46358]
[1744361640546,6.46247,1547.4,1547.1,6.46354]
[1744361641008,6.46293,1547.3,1547.0,7.21684]
[1744361641208,13.72962,1547.3,1547.0,6.46404]
[1744361641404,7.26666,1547.3,1546.9,6.46454]
[1744361641647,0.8036,1547.3,1547.0,12.92768]
[1744361642146,0.8036,1547.3,1546.8,10.23403]
[1744361642147,6.46252,1547.4,1547.1,13.70017]
[1744361642343,7.754979,1547.4,1547.1,0.773]
[1744361642542,7.754979,1547.4,1547.1,7.23666]
[1744361642848,6.4621,1547.5,1547.1,7.23654]
[1744361643011,3.7767,1547.6,1546.9,0.8051]
[1744361643356,6.46232,1547.5,1547.1,6.46334]
[1744361643655,6.46232,1547.5,1547.1,12.92668]
[1744361643812,6.46225,1547.5,1547.1,12.92668]
[1744361644011,6.46225,1547.5,1547.2,6.46315]
[1744361644215,6.46225,1547.5,1547.2,6.46313]
[1744361645427,6.46225,1547.5,1547.2,12.92627]
[1744361645635,0.8214,1547.9,1547.3,6.46287]
[1744361645845,7.28183,1547.9,1547.4,0.8175]
[1744361646154,6.46043,1547.9,1547.6,6.46135]
[1744361646313,7.752476,1547.9,1547.5,12.92373]
[1744361647054,7.752476,1547.9,1547.6,6.46151]
[1744361647350,6.46043,1547.9,1547.6,6.46151]
[1744361647658,12.92115,1547.9,1547.5,6.46186]
[1744361648142,6.46043,1547.9,1547.5,12.9237]
[1744361648655,6.46043,1547.9,1547.4,0.8175]
[1744361648656,6.45996,1548.0,1547.7,6.46108]
[1744361649037,6.45996,1548.0,1547.6,6.46152]
[1744361649038,6.46047,1547.9,1547.6,6.46152]
[1744361649445,12.9211,1547.9,1547.5,12.92384]
[1744361649752,6.46047,1547.9,1547.5,14.297974]
[1744361649940,6.46109,1547.8,1547.4,7.27992]
[1744361650140,6.46182,1547.6,1547.2,12.9264]
[1744361650330,7.28781,1547.5,1547.1,6.46356]
[1744361650676,7.28781,1547.5,1547.2,6.46324]
[1744361651018,8.662755,1547.5,1547.2,6.46324]
[1744361651644,6.46268,1547.4,1547.0,15.15273]
[1744361651844,12.9255,1547.4,1547.0,14.37103]
[1744361652170,6.46288,1547.3,1547.0,14.37103]
[1744361653369,12.926,1547.3,1547.0,7.907]
[1744361653564,12.926,1547.3,1546.8,6.4648]
[1744361653565,6.46384,1547.1,1546.8,6.4648]
[1744361653868,6.46384,1547.1,1546.7,14.37201]
[1744361653869,6.46384,1547.1,1546.7,6.46501]
[1744361654178,6.46457,1546.9,1546.6,7.23544]
[1744361654528,6.46457,1546.9,1546.6,6.46574]
[1744361654730,6.4639,1547.1,1546.4,15.15172]
[1744361654731,12.9278,1547.1,1546.4,15.15172]
[1744361655063,14.60304,1547.1,1546.7,6.46519]
[1744361657667,6.46413,1547.0,1546.7,6.46519]
[1744361657833,0.7788,1547.0,1546.6,6.46552]
[1744361658037,7.24317,1547.0,1546.6,6.46552]
[1744361658573,6.46455,1546.9,1546.6,6.46552]
[1744361659156,7.24317,1547.0,1546.7,6.46519]
[1744361659446,7.24317,1547.0,1546.5,1.515172]
[1744361659447,10.7604861,1547.2,1546.8,6.46476]
[1744361659663,10.7604861,1547.2,1546.9,6.46454]
[1744361660046,10.7604861,1547.2,1546.8,12.92956]
[1744361660047,10.27717,1547.2,1546.8,12.92956]
[1744361660303,3.8138,1547.2,1546.7,7.24663]
[1744361660460,6.46407,1547.1,1546.7,6.46519]
[1744361660638,10.7231188,1547.2,1546.8,12.92951]
[1744361660842,10.7231188,1547.2,1546.8,6.46473]
[1744361661044,0.8138,1547.2,1546.9,12.9288]
[1744361661253,3.7754,1547.4,1546.9,6.46454]
[1744361661541,0.7754,1547.4,1547.2,6.46322]
[1744361661739,0.7754,1547.4,1547.0,6.46396]
[1744361661983,6.46313,1547.3,1546.9,6.4644]
[1744361662146,13.573323,1547.2,1546.8,14.35587]
[1744361662338,7.26583,1547.1,1546.7,6.46528]
[1744361662546,12.92879,1547.0,1546.6,7.2804]
[1744361662766,6.46457,1546.9,1546.6,6.4657]
[1744361663372,7.26554,1547.1,1546.5,7.891]
[1744361663675,0.726554,1547.0,1546.7,6.46501]
[1744361664264,0.726554,1547.0,1546.7,12.9302]